Cogmind - Beta 16.1 @@@ ROGUE MODE // 2026.04.24 @ 15:58:39 Player: Bereft Result: Destroyed by G-34 Mercenary with Small Laser Performance ------------- Evolutions (1) 500 Regions Visited (3) 600 Robots Destroyed (56) 280 Value Destroyed (1292) 1292 Prototype IDs (1) 20 Alien Tech Used (0) 0 Bonus (508) 508 TOTAL SCORE: 3200 Bonus ------- High Alert Combat Kills 87 Follower Combat Kills 421 Cogmind --------- Core Integrity 0/400 Matter 241/300 Energy 265/265 System Corruption 0% Temperature Cool (81) Movement Flying (117) Ox1 Location -9/Storage Parts ------- > --- POWER (1) -------- Improved Ion Engine > --- PROPULSION (4) --- Flight Unit Flight Unit > --- UTILITY (2) ------ Machine Analyzer Terrain Scan Processor > --- WEAPON (2) ------- Small Laser Autogun > --- INVENTORY (5) ---- Small Battery (100) Drone Bay (2/2) Drone Bay (2/2) Beamcaster Peak State ------------ > --- POWER ------------ Light Nuclear Core > --- PROPULSION ------- Flight Unit Flight Unit Flight Unit Flight Unit > --- UTILITY ---------- Terrain Scan Processor Drone Bay > --- WEAPON ----------- Beam Rifle Beamcaster > --- INVENTORY -------- Small Battery Structural Scanner Machine Analyzer Drone Bay Drone Bay [Rating: 22] Favorites ----------- Power Ion Engine Engine Ion Engine Power Core Light Nuclear Core Propulsion Flight Unit Treads Light Treads Leg Aluminum Leg Flight Unit Flight Unit Utility Terrain Scan Processor Device Structural Scanner Storage Small Storage Unit Processor Terrain Scan Processor Weapon Small Laser Energy Gun Small Laser Ballistic Gun Assault Rifle Special Weapon Mining Laser Build | -11 -10 -9 -9 ------- Run | Yrd Mat Mat Sto Slots Evolved 2 | . . 2 . Power . | . . . . Propulsion 2 | . . 2 . Utility . | . . . . Weapon . | . . . . Parts Attached 56 | 7 15 2 32 Power 13 | 2 4 . 7 Engine 12 | 2 4 . 6 Core 1 | . . . 1 Reactor . | . . . . Propulsion 21 | 2 4 2 13 Treads 4 | . . . 4 Leg 4 | 2 2 . . Wheel . | . . . . Hover . | . . . . Flight 13 | . 2 2 9 Utility 6 | 1 2 . 3 Device 3 | . 1 . 2 Storage 1 | 1 . . . Processor 2 | . 1 . 1 Hackware . | . . . . Protection . | . . . . Artifact . | . . . . Weapon 16 | 2 5 . 9 Energy Gun 12 | 2 2 . 8 Energy Cannon . | . . . . Ballistic Gun 2 | . 1 . 1 Ballistic Cannon . | . . . . Launcher . | . . . . Special Weapon 2 | . 2 . . Impact Weapon . | . . . . Slashing Weapon . | . . . . Piercing Weapon . | . . . . Special Melee Weapon . | . . . . Unidentified Prototypes 1 | . 1 . . Parts Lost 19 | . 7 . 12 Power 4 | . 2 . 2 Propulsion 6 | . 1 . 5 Utility 2 | . . . 2 Weapon 7 | . 4 . 3 Highest Loss Streak 5 | . 5 . 4 To Critical Strikes . | . . . . Average Backups 4 | 4 6 3 4 Power . | . 1 1 . Propulsion 1 | 2 3 1 . Utility 2 | . . 1 2 Weapon . | . . . . Tool/Special . | . . . . Unused Backups 9 | . 4 . 5 Power 1 | . . . 1 Propulsion 5 | . 4 . 1 Utility 3 | . . . 3 Weapon . | . . . . Tool/Special . | . . . . Average Slot Usage (%) 91 | . 86 77 93 Engine 8 | . 12 11 6 Core 3 | . . . 4 Treads 5 | . . . 7 Leg 4 | . 19 . . Flight 28 | . 7 33 35 Device 8 | . 3 11 10 Storage 2 | . 10 . . Processor 10 | . 8 11 11 Energy Gun 16 | . 13 11 17 Ballistic Gun 1 | . 4 . . Special Weapon 1 | . 5 . . Peak Build Rating 22 | 6 9 11 22 Average Rating 12 | 5 6 10 14 On Entrance 6 | . 6 9 11 Avg Prop Armor Cover (%) 3 | . . . 3 Naked Turns . | . . . . Heaviest Build 19 | 13 13 10 19 Greatest Support 80 | 20 20 16 80 Greatest Overweight (x) 3 | . 2 . 3 Average Overweight (x) . | . . . . Largest Inventory Capacity 8 | 8 8 5 5 Average Capacity 5 | 7 7 5 5 Most Carried 8 | 7 8 4 5 Average Carried 4 | 4 6 3 4 Final Capacity 8 | 8 5 5 5 Final Carried 7 | 7 5 3 4 Class Distribution -------------------- 57% | Scavenger-Mutant 22% | Scavenger-Sprinter 19% | Mutant Dominant Class ---------------- Scavenger-Mutant | -10/Materials Scavenger-Mutant | -9/Materials Scavenger-Mutant | -9/Storage Resources | -11 -10 -9 -9 ----------- Run | Yrd Mat Mat Sto Matter Collected 1113 | 270 228 . 615 Remotely . | . . . . Salvage Created 1866 | 133 438 . 1295 Parts 138 | 13 32 . 93 Haulers Intercepted 1 | . . . 1 Recyclers Shooed 1 | 1 . . . Parts Field Recycled . | . . . . Retrieved Matter . | . . . . Parts Self-Destructed . | . . . . Prevented . | . . . . Parts Restored . | . . . . Kills | -11 -10 -9 -9 ------- Run | Yrd Mat Mat Sto Combat Hostiles Destroyed 41 | . 11 . 30 Guns 40 | . 11 . 29 AOE 1 | . . . 1 Classes Destroyed 12 | 3 3 . 6 Worker 4 | 1 1 . 2 Builder 3 | . 1 . 2 Tunneler 2 | 2 . . . Hauler 1 | . . . 1 Recycler 2 | 1 1 . . Mechanic 1 | . . . 1 Watcher 2 | . . . 2 Swarmer 12 | . 5 . 7 Grunt 22 | . 6 . 16 Brawler 1 | . . . 1 Protector 1 | . . . 1 Sentry 5 | . . . 5 Best Kill Streak 7 | 3 6 . 7 Combat Bots Only 5 | . 3 . 5 Max Kills in Single Turn 2 | 2 1 . 1 Gunslinging . | . . . . Exploded 1 | . . . 1 Melee . | . . . . Uniques/NPCs Destroyed . | . . . . Combat | -11 -10 -9 -9 -------- Run | Yrd Mat Mat Sto Hostile Shots Fired 283 | . 126 . 157 Missed 102 | . 48 . 54 Hits 181 | . 78 . 103 Projectile 181 | . 78 . 103 AOE 2 | . . . 2 Critical Strikes 4 | . 2 . 2 Damage Taken 2282 | . 832 . 1450 Core 621 | . 219 . 402 Absorbed by Shields . | . . . . Regen/Repaired (Parts) 13 | . . . 13 Core Remaining (%) 56 | 100 12 . . Volleys Fired 233 | 10 88 . 135 Largest 2 | 2 2 . 2 Hottest 131 | 80 80 . 131 Shots Fired 332 | 20 105 . 207 Gun 330 | 20 103 . 207 Cannon . | . . . . Launcher . | . . . . Special 2 | . 2 . . Kinetic 69 | . 47 . 22 Thermal 236 | 10 41 . 185 Explosive . | . . . . Electromagnetic 27 | 10 17 . . Robot Hit Streak 11 | 4 7 . 11 Robot Miss Streak 6 | 4 5 . 6 Penetration Max . | . . . . Secondary Targets 1 | . 1 . . Max Gunslinging Chain 1 | . 1 . . Shots Hit Robots 161 | 10 40 . 111 Core Hits 80 | 5 22 . 53 Critical Kills . | . . . . Critical Parts Destroyed . | . . . . Critical Strikes 3 | . . . 3 Burn 3 | . . . 3 Melee Attacks . | . . . . Impact . | . . . . Slashing . | . . . . Piercing . | . . . . Sneak Attacks . | . . . . Combat Hostiles . | . . . . Follow-up Attacks . | . . . . Damage Inflicted 2388 | 144 557 . 1687 Guns 2208 | 144 509 . 1555 Cannons . | . . . . Explosions 177 | . 45 . 132 Melee . | . . . . Ramming 3 | . 3 . . Kinetic 399 | . 234 . 165 Thermal 1678 | 79 209 . 1390 Explosive 132 | . . . 132 Electromagnetic 176 | 65 111 . . Impact . | . . . . Slashing . | . . . . Piercing . | . . . . Highest Corruption 2 | . 2 . . Average Corruption 2 | . 2 . . Corruption Purged . | . . . . Corruption Blocked . | . . . . Effects 2 | . 2 . . Matter Fused 1 | . 1 . . Heat Flow Errors 1 | . 1 . . Overload Shots . | . . . . Overflow Damage 16 | . . . 16 Projectiles . | . . . . Explosions 16 | . . . 16 Melee . | . . . . Knockbacks . | . . . . Impact . | . . . . Kinetic . | . . . . Secondary . | . . . . Self-Inflicted Damage 61 | . 1 . 60 Shots 1 | . . . 1 Rammed 1 | . 1 . . Targets Rammed 1 | . 1 . . Kicked . | . . . . Crushed . | . . . . Highest Temperature 571 | 72 182 . 571 Average Temperature 142 | 29 51 . 170 Received Heat Transfer 918 | . 378 . 540 Effects 22 | . . . 22 Shutdowns 5 | . . . 5 Energy Bleed 2 | . . . 2 Interference 5 | . . . 5 Matter Decay 3 | . . . 3 Short Circuit 2 | . . . 2 Damage (minor) 1 | . . . 1 Damage (major) 3 | . . . 3 Damage (core) 1 | . . . 1 Siege Activations . | . . . . Martial Activations . | . . . . Shielding Activations . | . . . . Robots Disrupted . | . . . . Combat Hostiles . | . . . . Robots Corrupted . | . . . . Combat Hostiles . | . . . . Parts Fried . | . . . . Impact Corruptions . | . . . . Robots Melted . | . . . . Combat Hostiles . | . . . . Parts Melted 6 | . . . 6 Heat Transferred 3945 | 175 425 . 3345 Parts Sabotaged . | . . . . Parts Stolen . | . . . . Parts Stripped . | . . . . Power Chain Reactions 1 | . 1 . . Alert | -11 -10 -9 -9 ------- Run | Yrd Mat Mat Sto Maximum Alert Level 2 | . . . 2 Low Security (%) 58 | 100 100 100 40 Level 1 25 | . . . 35 Level 2 16 | . . . 23 Level 3 . | . . . . Level 4 . | . . . . Level 5 . | . . . . High Security . | . . . . Max Security . | . . . . Peak Influence 522 | 10 91 . 522 Initial . | . . . . Average 203 | 1 33 . 280 Influence Increases 1819 | 20 318 . 1481 Destroy 0b10 Robot/C 1100 | . 220 . 880 Destroy 0b10 Robot/NC 80 | 20 15 . 45 Destroy Leader 246 | . 30 . 216 Allied During Kill 68 | . . . 68 Successful Hack 34 | . 7 . 27 Disable Machine 30 | . 15 . 15 Destroy Structure 21 | . 1 . 20 Lose Combat Pursuer 240 | . 30 . 210 Influence Decreases 1299 | 20 318 . 961 Time Decay 879 | 20 248 . 611 Lost Part 190 | . 70 . 120 Lost Ally 230 | . . . 230 Squads Dispatched 11 | . 1 . 10 Investigation 7 | . 1 . 6 Extermination . | . . . . Reinforcement 2 | . . . 2 Assault 2 | . . . 2 Garrison . | . . . . Intercept . | . . . . Searches Triggered . | . . . . Construction Impeded . | . . . . Haulers Reinforced . | . . . . Active Scanning Responses . | . . . . Cargo Convoy Interrupts . | . . . . Stealth | -11 -10 -9 -9 --------- Run | Yrd Mat Mat Sto Distress Signals 2 | . . . 2 Communications Jammed . | . . . . Distress Signals . | . . . . Times Spotted 82 | . 21 . 61 Peak Tracking Total 8 | . 5 . 8 Tactical Retreats 8 | . 2 . 6 Traps | -11 -10 -9 -9 ------- Run | Yrd Mat Mat Sto Traps Triggered 3 | . 2 . 1 Indirectly . | . . . . Trap Hack Attempts . | . . . . Triggered . | . . . . Disarmed . | . . . . Reprogrammed . | . . . . Reused . | . . . . Traps Extracted . | . . . . Installed . | . . . . Triggered . | . . . . Machines | -11 -10 -9 -9 ---------- Run | Yrd Mat Mat Sto Machines Disabled 2 | . 1 . 1 Max in Single Turn 1 | . 1 . 1 Machines Repaired . | . . . . Machines Dismantled . | . . . . Machines Sabotaged . | . . . . Overloaded Fab Kills . | . . . . Hacking | -11 -10 -9 -9 --------- Run | Yrd Mat Mat Sto Machines Accessed 16 | . 3 . 13 Terminals 13 | . 3 . 10 Fabricators . | . . . . Repair Stations 1 | . . . 1 Recycling Units 2 | . . . 2 Scanalyzers . | . . . . Garrison Access . | . . . . Total Hacks 35 | . 9 . 26 Successful 23 | . 6 . 17 Failed 12 | . 3 . 9 Catastrophic 2 | . . . 2 Database Lockouts . | . . . . Manual 10 | . . . 10 Terminals 30 | . 9 . 21 Fabricators . | . . . . Repair Stations 3 | . . . 3 Recycling Units 2 | . . . 2 Scanalyzers . | . . . . Garrison Access . | . . . . Terminal Hacks 15 | . 6 . 9 Record 7 | . 5 . 2 Open Door 3 | . . . 3 Locate Traps 1 | . . . 1 Dispatch Records 1 | . . . 1 Patrol Status 1 | . . . 1 Transport Status 1 | . . . 1 Registered Components 1 | . 1 . . Fabricator Hacks . | . . . . Repair Station Hacks 3 | . . . 3 Scan Component 2 | . . . 2 Repair 1 | . . . 1 Recycling Unit Hacks . | . . . . Scanalyzer . | . . . . Garrison Access Hacks . | . . . . Unauthorized Hacks 5 | . . . 5 Terminals 3 | . . . 3 Assimilate 3 | . . . 3 Fabricators . | . . . . Repair Stations . | . . . . Recycling Units 2 | . . . 2 Reject 2 | . . . 2 Scanalyzers . | . . . . Garrison Access . | . . . . Data Cores Recovered . | . . . . Used . | . . . . Hacking Detections 11 | . 3 . 8 Full Trace Events 6 | . 1 . 5 Feedback Events . | . . . . Feedback Blocked . | . . . . Robot Schematics Acquired . | . . . . Robots Built . | . . . . Authchips . | . . . . Time . | . . . . Total Robot Build Rating . | . . . . Part Schematics Acquired . | . . . . Parts Built . | . . . . Authchips . | . . . . Time . | . . . . Total Part Build Rating . | . . . . Part Studies Acquired . | . . . . Parts Repaired 1 | . . . 1 Time 26 | . . . 26 Parts Recycled . | . . . . Recycled Matter . | . . . . Retrieved Matter . | . . . . Retrieved Components . | . . . . Parts Scanalyzed . | . . . . Part Schematics Acquired . | . . . . Parts Damaged . | . . . . Bothacking | -11 -10 -9 -9 ------------ Run | Yrd Mat Mat Sto Used RIF Installer . | . . . . Robots Hacked . | . . . . Non-combat . | . . . . Combat . | . . . . Robot Hacks Applied . | . . . . Relay Couplers Released . | . . . . Fabnet Peak Effective % . | . . . . Robots Rewired . | . . . . Allies Hacked . | . . . . Hacks Repelled . | . . . . Allies | -11 -10 -9 -9 -------- Run | Yrd Mat Mat Sto Total Allies 12 | . . . 12 Largest Group 10 | . . . 10 Highest-Rated Group 134 | . . . 134 Highest-Rated Ally 31 | . . . 31 Total Orders 6 | . . . 6 ROAM 2 | . . . 2 GUARD 1 | . . . 1 EXPLORE 3 | . . . 3 Ally Attacks 70 | . . . 70 Total Damage 876 | . . . 876 Kills 15 | . . . 15 Allies Corrupted . | . . . . Allies Melted . | . . . . Intel | -11 -10 -9 -9 ------- Run | Yrd Mat Mat Sto Active Infowar (turns) 1151 | . 187 7 957 Terrain 672 | . 187 7 478 Structural 410 | . . . 410 Machine Analysis 69 | . . . 69 Robot Analysis Total . | . . . . Derelict Logs Recovered . | . . . . Drone Launches 6 | . . . 6 Drone Recoveries 5 | . . . 5 Exploration | -11 -10 -9 -9 ------------- Run | Yrd Mat Mat Sto Turns Passed 3095 | 209 719 7 2160 Spaces Moved 1592 | 139 404 15 1034 Core 6 | 5 . . 1 Treads 49 | . . . 49 Legs 396 | 134 262 . . Wheels . | . . . . Hover . | . . . . Flight 1141 | . 142 15 984 Fastest Speed 31 | 50 37 31 31 Average Speed 72 | 117 105 31 53 Slowest Speed 200 | 120 200 31 200 Overloaded Moves . | . . . . Propulsion Burnouts . | . . . . Robots Hopped 11 | . . . 11 Potential Cave-ins . | . . . . Cave-ins Triggered . | . . . . Exploration Rate (%) 33 | 7 42 3 81 Regions Visited 3 Branch Regions 1 Pre-discovered Areas . | . . . . Known Exits Taken . | . . . . Unknown Exits Taken 3 | 1 1 1 . Scrap Searched . | . . . . Spaces Dug . | . . . . Terrain Destroyed 25 | . 1 . 24 Melee . | . . . . Projectile . | . . . . AOE 25 | . 1 . 24 Terrain Rammed . | . . . . Walls Destroyed . | . . . . Machines Disabled . | . . . . Actions | -11 -10 -9 -9 --------- Run | Yrd Mat Mat Sto Total 3198 | 161 590 16 2431 Wait 1250 | . 64 . 1186 Move 1567 | 138 403 14 1012 Hop 11 | . . . 11 Pick Up 20 | 6 6 . 8 Fast Attach 35 | 6 10 . 19 Attach 13 | . 4 2 7 Detach 1 | . . . 1 Swap 15 | 1 2 . 12 Drop 37 | . 12 . 25 Fire 233 | 10 88 . 135 Melee . | . . . . Ram 1 | . 1 . . Kick . | . . . . Crush . | . . . . Escape Stasis 15 | . . . 15 Rewire . | . . . . Trap . | . . . . Miscellaneous . | . . . . Route ------- -11/Scrapyard -10/Materials -9/Materials -9/Storage History --------- Turn | Location | Event 13 | -11/Scrapyard | Discovered new exit (range 15) 210 | -11/Scrapyard | Entered Materials 306 | -10/Materials | Build established: Mutant 449 | -10/Materials | Core integrity fell below 50% 507 | -10/Materials | Lost 5 parts (1p1n3w) 626 | -10/Materials | Core integrity fell below 20% 807 | -10/Materials | Build established: Scavenger-Mutant 878 | -10/Materials | Discovered new exit (range 4) 929 | -10/Materials | Entered another Materials area 929 | -9/Materials | Evolved 2 slots: Propulsion x2 931 | -9/Materials | Discovered new exit (range 14) 936 | -9/Materials | Entered Storage 1451 | -9/Storage | Lost 4 parts (1p1n1u1w) 1619 | -9/Storage | Assisted by bots powering up and referring to "LRC-V3" 1683 | -9/Storage | Met a pair of Derelict thieves 1753 | -9/Storage | Lost 6 allies 1894 | -9/Storage | Lost 3 allies 2121 | -9/Storage | Core integrity fell below 50% 2902 | -9/Storage | Repaired Flight Unit 3077 | -9/Storage | Lost 4 parts (2n1u1w) 3077 | -9/Storage | Core integrity fell below 20% 3096 | -9/Storage | Destroyed by G-34 Mercenary with Small Laser Last Messages --------------- Dropped Imp. Ion Engine. Overheating: Energy bleed (-46). Dropped Broken Beam Rifle. Acquired Autogun. Flight Unit destroyed. Structural Scanner destroyed. Flight Unit destroyed. Overheating: Matter decay (-61). G-34 Mercenary destroyed. Sml. Laser destroyed. G-34 Mercenary destroyed. K-01 Serf collects debris. Acquired 49 matter. Acquired 48 matter. Acquired Sml. Laser. Acquired 13 matter. >> Machine Analyzer network decryption results: Repair Station x1 G-34 Mercenary destroyed. K-01 Serf collects debris. Map ----- +----------------------------------------------------+ | | | | | | | | | | | | | | | | | ??????????????????????????????###########???????? | | ??????????????????????????????## ##???##### | | ????????????????????????######## """##???# | | ????????????????????????######## """###### | | ????????????????????????## + ["""###### | | ????????????????????????## # / + | | ????????????????????????## ####+#### ##+## | | ????????????????????????## ### !### ## | | ????????????????????????## %= ## | | ????????????????????????## ### *###### ## | | ????????????????????????## ################ ## | | ??????????????????########+### #??## ## | | ??????????????????# ##??????? ##### ## | | ??????????????????# * ##??????? ##### ## | | ????????????????? # k##??????? + | | ????????????????? # ##??????? ######## ## | | ????????????????? # ##??????? ######## ## | | ????????????????? # @ ##??""" ####### *# | | ????????????????? # ## ?""" / *%= =% !% | | ????????????????? # ## #######= # | | ?????????????????#######/######??????+########### | | ????????????????? g ?????????????###### | | ???????????????????????!% ???????????????????#??# | | ?????????????????????? ?????????????????#???# | | ??????????????????????##+##???????????????????### | | ?????????????????????? ??????????????????????# | | ??????????????????????? ???""????????"??#?????? | | ??????????????????????? ???"""????????????????# | | ??????????????????????? ????R"????????????????? | | ??????????????????????? ???"""???????#???#???## | | ?????????????????????""" """??????????????????### | | ?????????????????????""" """?????????????? | | ?????????????????????""" """?????????????? | | ????????#######?????????#????????????????? | | ???????###### ##???????????????????????????###### | | ???????# # [ ##???????????????????????????##### | | ???????# # * =###########??????????????????##### | | ???????# #= ! ## ###?#######????????##### | | ???????# #% ##""" ""## #????#####? | | ???????# #/ =##""" ""## #?????##### | | ???????# #%= !##""" T"## """ """ #?????###?# | | ???????# # ## ""?# """ """ #?????##### | +----------------------------------------------------+ Best States ------------- Heat Dissipation 28 Energy Generation 14 Energy Capacity 280 Matter Stores 300 Matter Capacity 300 Sight Range 16 Terrain Scan Range 14 Terrain Scan Density 85 Evasion (%) 63 Recoil Reduction 4 Item Schematics ----------------- None Robot Schematics ------------------ None Fabricated ------------ Nothing Repaired ---------- Flight Unit | 35% | -9/Storage Studied --------- None Alien Tech Used ----------------- None Achievements -------------- True Hacker Challenges ------------ None Game ------ Seed ProcessingSpacefoldBuckler Manual? 0 Play Time 00:40:14 Cumulative 25.9 hours Start 2026.04.24 @ 15:06:43 End 2026.04.24 @ 15:58:39 Sessions 1 Manual Loads 0 Difficulty Rogue Special Mode None Game No. 44 Rogue 44 Adventurer 0 Explorer 0 Win Type - Total 0 Types 0/0/0/0/0/0/0/0/0/0 Lore% 22 Gallery% 23 Achievement% 21 Wizard Run 0 Options --------- Layout 1 ASCII 0 Keyboard 0 Movement Mouse Keybinds 0 Fullscreen 1 Font 32/SmallcapsGlow Map View 50x35 Zoom Use 0% Tactical HUD 0 Map Filters NONE Filters NONE Steam 1 RUN: aad4d60f-b8ca-4713-973c-f1935c7e9479